bitfinex/quotes_BTCUSD_20250604
["timestamp","ask_amount","ask_price","bid_price","bid_amount"]
[1749026749369,0.50361305,105460.0,105450.0,0.89752]
[1749026749576,0.48584467,105460.0,105450.0,0.89752]
[1749026750413,0.50361305,105460.0,105450.0,0.89752]
[1749026750627,0.48584467,105460.0,105450.0,0.89752]
[1749026750808,0.50361305,105460.0,105450.0,0.89752]
[1749026751043,0.48584467,105460.0,105450.0,0.89752]
[1749026751609,0.50361305,105460.0,105450.0,0.89752]
[1749026751822,0.48584467,105460.0,105450.0,0.89752]
[1749026753251,0.50361305,105460.0,105450.0,0.89752]
[1749026753456,0.48584467,105460.0,105450.0,0.89752]
[1749026753663,0.50361305,105460.0,105450.0,0.89752]
[1749026753861,0.48584467,105460.0,105450.0,0.89752]
[1749026754265,0.50361305,105460.0,105450.0,0.89752]
[1749026754689,0.48584467,105460.0,105450.0,0.89752]
[1749026754900,0.50361305,105460.0,105450.0,0.89752]
[1749026755109,0.48584467,105460.0,105450.0,0.89752]
[1749026755750,0.50361305,105460.0,105450.0,0.89752]
[1749026756099,0.48584467,105460.0,105450.0,0.89752]
[1749026757666,0.50361305,105460.0,105450.0,0.89752]
[1749026757864,0.48584467,105460.0,105450.0,0.89752]
[1749026758087,0.50361305,105460.0,105450.0,0.89752]
[1749026758308,0.48584467,105460.0,105450.0,0.89752]
[1749026759864,0.50361305,105460.0,105450.0,0.89752]
[1749026760070,0.48584467,105460.0,105450.0,0.89752]
[1749026760491,0.50361305,105460.0,105450.0,0.89752]
[1749026760702,0.48584467,105460.0,105450.0,0.89752]
[1749026760882,0.50361305,105460.0,105450.0,0.89752]
[1749026761095,0.48584467,105460.0,105450.0,0.89752]
[1749026762548,0.50361287,105460.0,105450.0,0.89752]
[1749026762760,0.48584467,105460.0,105450.0,0.89752]
[1749026762969,0.03811772,105460.0,105450.0,0.91292]
[1749026763180,0.03811772,105460.0,105450.0,0.92822]
[1749026763181,0.02034952,105460.0,105450.0,0.92822]
[1749026766581,0.02034952,105460.0,105450.0,0.91276]
[1749026766821,0.03534952,105460.0,105450.0,0.89736]
[1749026767072,0.48574467,105460.0,105450.0,0.5186]
[1749026767324,0.51901309,105460.0,105450.0,0.89732]
[1749026767544,0.51901308,105460.0,105450.0,0.89732]
[1749026767775,0.50124467,105460.0,105450.0,0.60752]
[1749026767986,0.50124467,105460.0,105450.0,0.89732]
[1749026769022,0.51901343,105460.0,105450.0,0.89732]
[1749026769228,0.50124467,105460.0,105450.0,0.89732]
[1749026770075,0.51901343,105460.0,105450.0,0.89732]
[1749026770508,0.50124467,105460.0,105450.0,0.89732]
[1749026770709,0.5190134,105460.0,105450.0,0.89732]
[1749026770936,0.50124467,105460.0,105450.0,0.89732]
[1749026771350,0.51901343,105460.0,105450.0,0.89732]
[1749026771566,0.50124467,105460.0,105450.0,0.89732]
[1749026771984,0.48574467,105460.0,105450.0,0.89732]
[1749026773012,0.50351336,105460.0,105450.0,0.89732]
[1749026773914,0.52128205,105460.0,105450.0,0.89732]
[1749026774144,0.50351336,105460.0,105450.0,0.89732]
[1749026775583,0.52128205,105460.0,105450.0,0.89732]
[1749026775821,0.51851336,105460.0,105450.0,0.89732]
[1749026776585,0.53628205,105460.0,105450.0,0.89732]
[1749026776776,0.51851336,105460.0,105450.0,0.89732]
[1749026777001,0.53628205,105460.0,105450.0,0.89732]
[1749026777222,0.51851336,105460.0,105450.0,0.89732]
[1749026778656,0.5362821,105460.0,105450.0,0.89732]
[1749026778895,0.51851336,105460.0,105450.0,0.89732]
[1749026779353,0.53628212,105460.0,105450.0,0.89732]
[1749026779823,0.51851336,105460.0,105450.0,0.89732]
[1749026780331,0.51851336,105460.0,105450.0,0.60752]
[1749026780558,0.51851336,105460.0,105450.0,0.89728]
[1749026781033,0.53628237,105460.0,105450.0,0.89728]
[1749026781265,0.53628243,105460.0,105450.0,0.89728]
[1749026781497,0.51851336,105460.0,105450.0,0.89728]
[1749026782428,0.53628246,105460.0,105450.0,0.89728]
[1749026782674,0.53628246,105460.0,105450.0,0.89230272]
[1749026783577,0.53905156,105460.0,105450.0,0.89230272]
[1749026783788,0.52128246,105460.0,105450.0,0.89230272]
[1749026784359,0.53905131,105460.0,105450.0,0.89230272]
[1749026784595,0.52128246,105460.0,105450.0,0.89230272]
[1749026785063,0.39588731,105460.0,105450.0,0.89230272]
[1749026785278,0.39588731,105460.0,105450.0,0.90820272]
[1749026786225,0.41138731,105460.0,105450.0,0.89230272]
[1749026789442,0.55585074,105460.0,105450.0,0.89230272]
[1749026789675,0.53808246,105460.0,105450.0,0.89230272]
[1749026790152,0.55585148,105460.0,105450.0,0.89230272]
[1749026790383,0.53808246,105460.0,105450.0,0.89230272]
[1749026790714,0.55585148,105460.0,105450.0,0.89230272]
[1749026790812,0.53808246,105460.0,105450.0,0.89230272]
[1749026791261,0.52178246,105460.0,105450.0,0.89230272]
[1749026791466,0.53955148,105460.0,105450.0,0.89230272]
[1749026791678,0.52178246,105460.0,105450.0,0.89230272]
[1749026792520,0.53955122,105460.0,105450.0,0.89230272]
[1749026792731,0.52178246,105460.0,105450.0,0.89230272]
[1749026794133,0.53955126,105460.0,105450.0,0.89230272]
[1749026794322,0.52178246,105460.0,105450.0,0.89230272]
[1749026794525,0.53955126,105460.0,105450.0,0.89230272]
[1749026794727,0.52178246,105460.0,105450.0,0.89230272]
[1749026795052,0.53955122,105460.0,105450.0,0.89230272]
[1749026795265,0.52178246,105460.0,105450.0,0.89230272]
[1749026795859,0.53955121,105460.0,105450.0,0.89230272]
[1749026796064,0.52178246,105460.0,105450.0,0.89230272]
[1749026796276,0.53955121,105460.0,105450.0,0.89230272]
[1749026796467,0.52178246,105460.0,105450.0,0.89230272]
[1749026800594,0.53955079,105460.0,105450.0,0.89230272]
[1749026800803,0.39588731,105460.0,105450.0,0.92280272]
[1749026801012,0.39588731,105460.0,105450.0,0.91782416]
[1749026801214,0.39588731,105460.0,105450.0,0.90252416]
[1749026803491,0.39588731,105460.0,105450.0,0.91862416]
[1749026803696,0.39588731,105460.0,105450.0,0.90852416]
[1749026803866,0.39588731,105460.0,105450.0,0.89242416]
[1749026807934,0.39588731,105460.0,105450.0,0.87722416]
[1749026808523,0.39588731,105460.0,105450.0,0.89232416]
[1749026811134,0.41198731,105460.0,105450.0,0.89232416]
[1749026814808,0.41198731,105460.0,105450.0,0.87722416]
[1749026817410,0.41198731,105460.0,105450.0,0.58746416]
[1749026817733,0.41198731,105460.0,105450.0,0.87710416]
[1749026817976,0.53748246,105460.0,105450.0,0.87710416]
[1749026820143,0.55525061,105460.0,105450.0,0.87710416]
[1749026820350,0.53748246,105460.0,105450.0,0.87710416]
[1749026820737,0.52238246,105460.0,105450.0,0.87710416]
[1749026821472,0.54015061,105460.0,105450.0,0.87710416]
[1749026822466,0.52238246,105460.0,105450.0,0.87710416]
[1749026822887,0.54015061,105460.0,105450.0,0.87710416]
[1749026823101,0.52238246,105460.0,105450.0,0.87710416]
[1749026823337,0.52238246,105460.0,105450.0,0.87555208]
[1749026823768,0.55791876,105460.0,105450.0,0.87555208]
[1749026823992,0.54015061,105460.0,105450.0,0.87555208]
[1749026824418,0.55791873,105460.0,105450.0,0.87555208]
[1749026824641,0.54015061,105460.0,105450.0,0.87555208]
[1749026825504,0.52560976,105460.0,105450.0,0.87555208]
[1749026825737,0.41365546,105460.0,105450.0,0.89095208]
[1749026826856,0.41365546,105460.0,105450.0,1.19185208]
[1749026827063,0.05839708,105460.0,105450.0,1.20725208]
[1749026827498,0.05839708,105460.0,105450.0,0.90725208]
[1749026828571,0.05339708,105460.0,105450.0,0.90725208]
[1749026828791,0.05539708,105460.0,105450.0,0.90725208]
[1749026837819,0.39539708,105460.0,105450.0,0.90725208]
[1749026838691,0.39544303,105460.0,105450.0,0.90725208]
[1749026839111,0.05544303,105460.0,105450.0,0.90725208]
[1749026839319,0.05544303,105460.0,105450.0,0.90227672]
[1749026839765,0.05539708,105460.0,105450.0,0.90223077]
[1749026847931,0.07217261,105470.0,105450.0,0.90223077]
[1749026848132,0.07222071,105470.0,105450.0,0.90223077]
[1749026849776,0.07322071,105470.0,105450.0,0.88683077]
[1749026855703,0.07322071,105470.0,105460.0,0.08872]
[1749026858019,0.07422071,105470.0,105460.0,0.08872]
[1749026858424,0.07622071,105470.0,105460.0,0.08872]
[1749026860401,0.07622071,105470.0,105460.0,0.33432]
[1749026864908,0.07622071,105470.0,105460.0,0.33199078]
[1749026865117,0.07622071,105470.0,105460.0,0.60487078]
[1749026883533,0.07622071,105470.0,105460.0,0.89427078]
[1749026891562,0.07622071,105470.0,105460.0,0.89423078]
[1749026893811,0.07622071,105470.0,105460.0,0.60487078]
[1749026894059,0.07622071,105470.0,105460.0,0.89423078]
[1749026894452,0.09262071,105470.0,105460.0,0.89652]
[1749026894701,0.09262071,105470.0,105460.0,0.60716]
[1749026894964,0.20538591,105470.0,105460.0,0.60716]
[1749026895231,0.54301586,105470.0,105460.0,0.77929205]
[1749026895464,0.54301586,105470.0,105460.0,0.48993205]
[1749026895676,0.54301586,105470.0,105460.0,0.77929205]
[1749026897040,0.56078355,105470.0,105460.0,0.77929205]
[1749026897269,0.54301586,105470.0,105460.0,0.77929205]
[1749026898411,0.56078321,105470.0,105460.0,0.77929205]
[1749026898633,0.54301586,105470.0,105460.0,0.77929205]
[1749026899101,0.56078283,105470.0,105460.0,0.77929205]
[1749026899317,0.54624189,105470.0,105460.0,0.77929205]
[1749026899581,0.52847501,105470.0,105460.0,0.77929205]
[1749026900946,0.54624129,105470.0,105460.0,0.77929205]
[1749026901178,0.52847501,105470.0,105460.0,0.77929205]
[1749026901410,0.54624137,105470.0,105460.0,0.77929205]
[1749026901638,0.54624141,105470.0,105460.0,0.77929205]
[1749026901885,0.52847501,105470.0,105460.0,0.77929205]
[1749026902816,0.54624137,105470.0,105460.0,0.77929205]
[1749026903288,0.52847501,105470.0,105460.0,0.77929205]
[1749026904298,0.56086059,105470.0,105460.0,0.77929205]
[1749026904526,0.57862696,105470.0,105460.0,0.77929205]
[1749026904852,0.56086059,105470.0,105460.0,0.77929205]
[1749026905395,0.52847501,105470.0,105460.0,0.77431462]
[1749026906488,0.5462414,105470.0,105460.0,0.77431462]
[1749026906748,0.52847501,105470.0,105460.0,0.77431462]
[1749026907545,0.54624163,105470.0,105460.0,0.77431462]
[1749026907793,0.52847501,105470.0,105460.0,0.77431462]
[1749026910054,0.51207501,105470.0,105460.0,0.77431462]
[1749026910562,0.52767501,105470.0,105460.0,0.77431462]
[1749026913628,0.50990678,105470.0,105460.0,0.77431462]
[1749026916154,0.38195248,105470.0,105460.0,0.77431462]
[1749026916362,0.38195248,105470.0,105460.0,0.78991462]
[1749026916987,0.39745248,105470.0,105460.0,0.78991462]
[1749026917893,0.38195248,105470.0,105460.0,0.78991462]
[1749026918125,0.38195248,105470.0,105460.0,1.08991462]
[1749026918348,0.38195248,105470.0,105460.0,0.78991462]
[1749026919278,0.3440481,105470.0,105460.0,0.78991462]
[1749026921713,0.3440481,105470.0,105460.0,0.78493743]
[1749026931877,0.3440481,105470.0,105460.0,0.80083743]
[1749026932575,0.3420481,105470.0,105460.0,0.80083743]
[1749026932783,0.3400481,105470.0,105460.0,0.80083743]
[1749026934875,0.3410481,105470.0,105460.0,0.80083743]
[1749026945003,0.3410481,105470.0,105460.0,0.78493743]
[1749026948030,0.3410481,105470.0,105460.0,0.40689743]
[1749026948254,0.3562481,105470.0,105460.0,0.76905743]
[1749026948479,0.3562481,105470.0,105460.0,0.39129743]
[1749026948709,0.3720481,105470.0,105460.0,0.39129743]
[1749026948949,0.48244325,105470.0,105460.0,0.47985743]
[1749026949182,0.48244325,105470.0,105460.0,0.76901743]
[1749026949859,0.48244325,105470.0,105460.0,0.47985743]
[1749026950065,0.48244325,105470.0,105460.0,0.76901743]
[1749026950972,0.50021113,105470.0,105460.0,0.76901743]
[1749026951192,0.48244325,105470.0,105460.0,0.76901743]
[1749026951619,0.50021113,105470.0,105460.0,0.76901743]
[1749026952689,0.51797894,105470.0,105460.0,0.76901743]
[1749026952897,0.50021113,105470.0,105460.0,0.76901743]
[1749026954586,0.51797894,105470.0,105460.0,0.76901743]
[1749026954797,0.50021113,105470.0,105460.0,0.76901743]
[1749026957273,0.51797894,105470.0,105460.0,0.76901743]
[1749026957486,0.50021113,105470.0,105460.0,0.76901743]
[1749026958103,0.51797894,105470.0,105460.0,0.76901743]
[1749026958300,0.50021113,105470.0,105460.0,0.76901743]
[1749026960367,0.51797894,105470.0,105460.0,0.76901743]
[1749026960545,0.50021113,105470.0,105460.0,0.76901743]
[1749026960951,0.57119862,105470.0,105460.0,0.39129743]
[1749026961156,0.55343081,105470.0,105460.0,0.76901743]
[1749026961916,0.55243081,105470.0,105460.0,0.76901743]
[1749026962147,0.55443081,105470.0,105460.0,0.76901743]
[1749026962318,0.55643081,105470.0,105460.0,0.76901743]
[1749026962740,0.57419862,105470.0,105460.0,0.76901743]
[1749026963125,0.55643081,105470.0,105460.0,0.76901743]
[1749026963328,0.57419862,105470.0,105460.0,0.76901743]
[1749026963495,0.55643081,105470.0,105460.0,0.76901743]
[1749026965064,0.57419862,105470.0,105460.0,0.76901743]
[1749026965277,0.55643081,105470.0,105460.0,0.76901743]
[1749026965480,0.57419869,105470.0,105460.0,0.76901743]
[1749026965689,0.55643081,105470.0,105460.0,0.76901743]
[1749026966147,0.57419898,105470.0,105460.0,0.76901743]
[1749026966559,0.55643081,105470.0,105460.0,0.76901743]
[1749026967424,0.57419898,105470.0,105460.0,0.76901743]
[1749026967610,0.55643081,105470.0,105460.0,0.76901743]
[1749026968061,0.55643081,105470.0,105460.0,0.39129743]
[1749026968300,0.55643081,105470.0,105460.0,0.76897743]
[1749026969599,0.57419898,105470.0,105460.0,0.76897743]
[1749026969810,0.55643081,105470.0,105460.0,0.76897743]
[1749026970021,0.55643081,105470.0,105460.0,0.39129743]
[1749026970224,0.57419898,105470.0,105460.0,0.76897743]
[1749026970444,0.55643081,105470.0,105460.0,0.76897743]
[1749026970899,0.57419898,105470.0,105460.0,0.76897743]
[1749026971126,0.50321113,105470.0,105460.0,0.76897743]
[1749026971336,0.5209793,105470.0,105460.0,0.76897743]
[1749026971542,0.50321113,105470.0,105460.0,0.76897743]
[1749026972170,0.5209793,105470.0,105460.0,0.76897743]
[1749026972378,0.50321113,105470.0,105460.0,0.76897743]
[1749026972953,0.5209793,105470.0,105460.0,0.76897743]
[1749026973178,0.55228225,105470.0,105460.0,0.76897743]
[1749026973596,0.53451408,105470.0,105460.0,0.76897743]
[1749026975004,0.55228225,105470.0,105460.0,0.76897743]
[1749026975431,0.53451408,105470.0,105460.0,0.76897743]
[1749026975639,0.53451408,105470.0,105460.0,0.47981743]
[1749026975860,0.53451408,105470.0,105460.0,0.76897743]
[1749026976677,0.55228228,105470.0,105460.0,0.76897743]
[1749026976894,0.52097933,105470.0,105460.0,0.39129743]
[1749026977110,0.50321113,105470.0,105460.0,0.76897743]
[1749026978595,0.51456635,105470.0,105460.0,0.76897743]
[1749026980255,0.53233455,105470.0,105460.0,0.76897743]
[1749026980451,0.54287176,105470.0,105460.0,0.76897743]
[1749026981226,0.56063996,105470.0,105460.0,0.76897743]
[1749026981436,0.54287176,105470.0,105460.0,0.76897743]
[1749026982296,0.54928474,105470.0,105460.0,0.76897743]
[1749026982502,0.54288553,105470.0,105460.0,0.76897743]
[1749026983338,0.56065373,105470.0,105460.0,0.76897743]
[1749026983542,0.54288553,105470.0,105460.0,0.76897743]
[1749026983745,0.51458012,105470.0,105460.0,0.76897743]
[1749026983921,0.51458012,105470.0,105460.0,0.76400035]
[1749026984580,0.53234832,105470.0,105460.0,0.76400035]
[1749026984908,0.51458012,105470.0,105460.0,0.76400035]
[1749026986358,0.53234832,105470.0,105460.0,0.76400035]
[1749026986566,0.5145803,105470.0,105460.0,0.76400035]
[1749026986992,0.57074982,105470.0,105460.0,0.76400035]
[1749026987729,0.58851802,105470.0,105460.0,0.76400035]
[1749026987934,0.57074982,105470.0,105460.0,0.76400035]
[1749026989216,0.58851802,105470.0,105460.0,0.76400035]
[1749026989424,0.57074982,105470.0,105460.0,0.76400035]
[1749026989629,0.58851802,105470.0,105460.0,0.76400035]
[1749026990259,0.57074982,105470.0,105460.0,0.76400035]
[1749026990468,0.58851802,105470.0,105460.0,0.76400035]
[1749026990681,0.57074982,105470.0,105460.0,0.76400035]
[1749026990896,0.58851802,105470.0,105460.0,0.76400035]
[1749026991103,0.57074982,105470.0,105460.0,0.76400035]
[1749026991332,0.5323485,105470.0,105460.0,0.76400035]
[1749026991766,0.5145803,105470.0,105460.0,0.76400035]
[1749026993679,0.5323485,105470.0,105460.0,0.76400035]
[1749026993866,0.5145803,105470.0,105460.0,0.76400035]
[1749026994276,0.5323485,105470.0,105460.0,0.76400035]
[1749026994492,0.58020766,105470.0,105460.0,0.76400035]
[1749026994976,0.59804195,105470.0,105460.0,0.76400035]
[1749026995186,0.58027375,105470.0,105460.0,0.76400035]
[1749026995827,0.59804195,105470.0,105460.0,0.76400035]
[1749026996035,0.64301261,105470.0,105460.0,0.76392035]
[1749026996714,0.66078092,105470.0,105460.0,0.76392035]
[1749026997121,0.64301261,105470.0,105460.0,0.76392035]
[1749026999144,0.58027383,105470.0,105460.0,0.76392035]
[1749026999648,0.59804214,105470.0,105460.0,0.76392035]
[1749027000367,0.58027383,105470.0,105460.0,0.76392035]
[1749027001857,0.50321113,105470.0,105460.0,0.76392035]
[1749027002046,0.58028028,105470.0,105460.0,0.76392035]
[1749027002239,0.59804859,105470.0,105460.0,0.76392035]
[1749027002661,0.5978939,105470.0,105460.0,0.76392035]
[1749027003284,0.5978939,105470.0,105460.0,0.76222873]
[1749027003710,0.61566221,105470.0,105460.0,0.76222873]
[1749027004003,0.5978939,105470.0,105460.0,0.76222873]
[1749027004441,0.58028028,105470.0,105460.0,0.76222873]
[1749027005109,0.59804859,105470.0,105460.0,0.76222873]
[1749027005360,0.56448028,105470.0,105460.0,0.76222873]
[1749027005594,0.58224822,105470.0,105460.0,0.76222873]
[1749027005856,0.56448028,105470.0,105460.0,0.76222873]
[1749027006083,0.48358114,105470.0,105460.0,0.77862873]
[1749027007274,0.50134876,105470.0,105460.0,0.77862873]
[1749027007486,0.48358114,105470.0,105460.0,0.77862873]
[1749027007697,0.47221113,105470.0,105460.0,0.77862873]
[1749027007930,0.48997837,105470.0,105460.0,0.77862873]
[1749027008134,0.47221113,105470.0,105460.0,0.77862873]
[1749027008346,0.48997789,105470.0,105460.0,0.76867492]
[1749027008553,0.47221113,105470.0,105460.0,0.76867492]
[1749027008942,0.48997787,105470.0,105460.0,0.76867492]
[1749027009161,0.47221113,105470.0,105460.0,0.76867492]
[1749027009783,0.48997829,105470.0,105460.0,0.76867492]
[1749027009990,0.47221113,105470.0,105460.0,0.76867492]
[1749027011056,0.48997829,105470.0,105460.0,0.76867492]
[1749027011486,0.47221113,105470.0,105460.0,0.76867492]
[1749027012395,0.48997829,105470.0,105460.0,0.76867492]
[1749027012864,0.48997828,105470.0,105460.0,0.76867492]
[1749027013255,0.47221113,105470.0,105460.0,0.76867492]
[1749027013702,0.48997828,105470.0,105460.0,0.76867492]
[1749027013918,0.48997829,105470.0,105460.0,0.76867492]
[1749027014134,0.47221113,105470.0,105460.0,0.76867492]
[1749027014361,0.48997829,105470.0,105460.0,0.76867492]
[1749027014574,0.47221113,105470.0,105460.0,0.76867492]
[1749027015404,0.48997828,105470.0,105460.0,0.76867492]
[1749027015598,0.47221113,105470.0,105460.0,0.76867492]
[1749027015802,0.48997829,105470.0,105460.0,0.76867492]
[1749027015967,0.47221113,105470.0,105460.0,0.76867492]
[1749027016166,0.48997822,105470.0,105460.0,0.76867492]
[1749027016367,0.47221113,105470.0,105460.0,0.76867492]
[1749027016657,0.48761113,105470.0,105460.0,0.75227492]
[1749027017635,0.48761113,105470.0,105460.0,0.37467492]
[1749027017636,0.54557365,105470.0,105460.0,0.37467492]
[1749027017845,0.56097365,105470.0,105460.0,0.75215492]
[1749027018451,0.50301113,105470.0,105460.0,0.75215492]
[1749027019548,0.48761113,105470.0,105460.0,0.75215492]
[1749027019748,0.50535932,105470.0,105460.0,0.75215492]
[1749027019979,0.48761113,105470.0,105460.0,0.75215492]
[1749027023776,0.50341113,105470.0,105460.0,0.75215492]
[1749027024227,0.54351009,105470.0,105460.0,0.75215492]
[1749027024457,0.54351009,105470.0,105460.0,0.37467492]
[1749027024683,0.03094085,105450.0,105430.0,0.0324]
[1749027024909,0.4844652,105450.0,105440.0,0.289]
[1749027025131,0.48209515,105450.0,105440.0,0.289]
[1749027025796,0.48209515,105450.0,105430.0,0.0164]
[1749027025797,0.34,105440.0,105430.0,0.0164]
[1749027026005,0.34,105440.0,105430.0,0.30744]
[1749027026441,0.34,105440.0,105430.0,0.0164]
[1749027026661,0.34,105440.0,105430.0,0.30844]
[1749027026922,0.14209515,105450.0,105430.0,0.30844]
[1749027027133,0.02800775,105440.0,105430.0,0.30544]
[1749027027341,0.00237005,105440.0,105430.0,0.30544]
[1749027027557,0.00237005,105440.0,105430.0,0.30844]
[1749027028202,0.00237005,105440.0,105430.0,0.31244]
[1749027028414,0.34,105440.0,105430.0,0.31244]
[1749027030964,0.34,105440.0,105430.0,0.91948]
[1749027031855,0.36894803,105440.0,105430.0,0.91948]
[1749027036441,0.38414803,105440.0,105430.0,0.91948]
[1749027036933,0.36894803,105440.0,105430.0,0.91948]
[1749027046262,0.36894803,105440.0,105430.0,0.91948]
[1749027047119,0.36894803,105440.0,105430.0,0.91944]
[1749027058739,0.38444803,105440.0,105430.0,0.91944]
[1749027061551,0.38444803,105440.0,105430.0,0.90304]
[1749027062641,0.38444803,105440.0,105430.0,0.903]
[1749027062843,0.40014803,105440.0,105430.0,0.903]
[1749027063262,0.38444803,105440.0,105430.0,0.903]
[1749027065375,0.3845111,105440.0,105430.0,0.903]
[1749027066440,0.38444803,105440.0,105430.0,0.90293693]
[1749027071015,0.38448803,105440.0,105430.0,0.91823693]
[1749027075190,0.38448803,105440.0,105430.0,0.90293693]
[1749027084308,0.38448803,105440.0,105430.0,0.61397693]
[1749027084521,0.38448803,105440.0,105430.0,0.90289693]
[1749027124479,0.38448803,105440.0,105430.0,0.90273693]
[1749027124915,0.40028803,105440.0,105430.0,0.90273693]
[1749027126799,0.38448803,105440.0,105430.0,0.90273693]
[1749027132261,4e-05,105440.0,105430.0,0.93453693]
[1749027132816,4e-05,105440.0,105430.0,0.91913693]
[1749027136353,0.01514,105440.0,105430.0,0.91913693]
[1749027140249,0.01514,105440.0,105430.0,0.90273693]
[1749027144449,4e-05,105440.0,105430.0,0.91783693]
[1749027145421,4e-05,105440.0,105430.0,0.93313693]
[1749027162121,4e-05,105440.0,105430.0,0.91783693]
[1749027177060,0.01524,105440.0,105430.0,0.90273693]
[1749027253991,0.01524,105440.0,105430.0,0.90225693]
[1749027262301,0.01524,105440.0,105430.0,0.61397693]
[1749027262548,0.03074,105440.0,105430.0,0.90181693]
[1749027262790,0.03074,105440.0,105430.0,0.52553693]
[1749027263028,0.03074,105440.0,105430.0,0.90181693]
[1749027277061,0.03074,105440.0,105430.0,0.52553693]
[1749027277284,0.03074,105440.0,105430.0,0.90173693]
[1749027282856,0.03074,105440.0,105430.0,0.61353693]
[1749027283094,0.03074,105440.0,105430.0,0.90173693]
[1749027297354,0.01524,105440.0,105430.0,0.90173693]
[1749027317877,0.03104,105440.0,105430.0,0.52553693]
[1749027318099,0.03104,105440.0,105430.0,0.61345693]
[1749027318321,0.37104,105440.0,105430.0,0.61345693]
[1749027318561,0.37104,105440.0,105430.0,0.52553693]
[1749027318780,0.37104,105440.0,105430.0,0.90153693]
[1749027322393,0.39913632,105440.0,105430.0,0.90153693]
[1749027323957,0.39913632,105440.0,105430.0,0.52553693]
[1749027324178,0.39913632,105440.0,105430.0,0.90157693]
[1749027324392,0.39913632,105440.0,105430.0,0.61349693]
[1749027324603,0.39913632,105440.0,105430.0,0.90157693]
[1749027324851,0.39913632,105440.0,105430.0,0.89464]
[1749027325066,0.05913632,105440.0,105430.0,0.89864]
[1749027329034,0.05913632,105440.0,105430.0,0.89856]
[1749027341476,0.05913632,105440.0,105430.0,0.89852]
[1749027346568,0.04333632,105440.0,105430.0,0.89852]
[1749027348321,1.5702409,105440.0,105430.0,0.89852]
[1749027361234,1.5702409,105440.0,105430.0,0.61048]
[1749027361494,1.5702409,105440.0,105430.0,0.89844]
[1749027377167,0.38333632,105440.0,105430.0,0.89844]
[1749027377368,1.15940604,105440.0,105430.0,0.91454]
[1749027377614,1.5550409,105440.0,105430.0,0.91454]
[1749027377782,1.5550409,105440.0,105430.0,1.21454]
[1749027378145,1.5550409,105440.0,105430.0,0.91454]
[1749027379995,1.5712409,105440.0,105430.0,0.89844]
[1749027392167,1.57184159,105440.0,105430.0,0.89844]
[1749027394307,1.57184159,105440.0,105430.0,0.89836]
[1749027399412,1.57184159,105440.0,105430.0,0.89832]
[1749027410288,1.57184159,105440.0,105430.0,0.5226]
[1749027410511,1.57184159,105440.0,105430.0,0.52049205]
[1749027410512,2.90589826,105440.0,105430.0,0.52049205]
[1749027410738,2.90589826,105440.0,105430.0,0.80829205]
[1749027410948,2.88414132,105440.0,105430.0,0.80829205]
[1749027411384,2.88414132,105440.0,105430.0,0.80629205]
[1749027412277,2.88414132,105440.0,105430.0,0.42873205]
[1749027412729,1.69723674,105440.0,105430.0,0.80429205]
[1749027425539,1.57184159,105440.0,105430.0,0.80429205]
[1749027428265,1.58784159,105440.0,105430.0,0.80429205]
[1749027428895,1.58638244,105440.0,105430.0,0.80429205]
[1749027433024,1.58644741,105440.0,105430.0,0.80429205]
[1749027434197,1.58638244,105440.0,105430.0,0.80422708]
[1749027434973,1.60288244,105440.0,105430.0,0.80422708]
[1749027435856,1.58638244,105440.0,105430.0,0.80422708]
[1749027440770,0.39947786,105440.0,105430.0,0.80422708]
[1749027440992,1.58638244,105440.0,105430.0,0.80422708]
[1749027443361,1.57018244,105440.0,105430.0,0.80422708]
[1749027444018,1.58638244,105440.0,105430.0,0.80422708]
[1749027455011,1.57018244,105440.0,105430.0,0.82002708]
[1749027456398,1.16000673,105440.0,105430.0,0.82002708]
[1749027456619,1.57018244,105440.0,105430.0,0.82002708]
[1749027457072,1.54208612,105440.0,105430.0,0.82002708]
[1749027459758,1.5698956,105440.0,105430.0,0.82002708]
[1749027468662,1.13191041,105440.0,105430.0,0.83582708]
[1749027470263,0.79191041,105440.0,105430.0,0.83582708]
[1749027470705,1.13191041,105440.0,105430.0,0.83582708]
[1749027485814,1.13191041,105440.0,105430.0,0.82002708]
[1749027497278,1.14811041,105440.0,105430.0,0.51642708]
[1749027497594,1.14811041,105440.0,105430.0,0.80394708]
[1749027497932,1.14811041,105440.0,105430.0,0.51642708]
[1749027497933,1.54374527,105440.0,105430.0,0.51642708]
[1749027498115,1.57428612,105440.0,105430.0,0.51626708]
[1749027498361,1.57428612,105440.0,105430.0,0.80378708]
[1749027501695,1.60264758,105440.0,105430.0,0.80378708]
[1749027506418,2.88540646,105440.0,105430.0,0.51626708]
[1749027506638,1.69850188,105440.0,105430.0,0.80378708]
[1749027510385,1.69850188,105440.0,105430.0,0.42866708]
[1749027510591,1.69850188,105440.0,105430.0,0.80378708]
[1749027526599,1.69850188,105440.0,105430.0,0.80374708]
[1749027531106,1.69850188,105440.0,105430.0,0.51622708]
[1749027531305,1.69850188,105440.0,105430.0,0.80370708]
[1749027533445,1.69850188,105440.0,105430.0,0.51622708]
[1749027533446,1.72343008,105440.0,105430.0,0.51622708]
[1749027533656,1.72343008,105440.0,105430.0,0.80370708]
[1749027533862,1.72343008,105440.0,105430.0,0.51622708]
[1749027533863,2.88540646,105440.0,105430.0,0.51622708]
[1749027534071,2.88540646,105440.0,105430.0,0.80370708]
[1749027534669,2.88540646,105440.0,105430.0,0.68655913]
[1749027535625,1.69850188,105440.0,105430.0,0.68655913]
[1749027538892,2.90282057,105440.0,105420.0,0.01993416]
[1749027539096,1.60234758,105440.0,105430.0,0.86132556]
[1749027539313,1.70314989,105440.0,105430.0,0.60624]
[1749027540373,2.89005447,105440.0,105430.0,0.60624]
[1749027540591,2.89005447,105440.0,105430.0,0.89372]
[1749027540802,1.70314989,105440.0,105430.0,0.89372]
[1749027541234,0.91188017,105440.0,105430.0,0.89372]
[1749027542235,0.99410252,105440.0,105430.0,0.89372]
[1749027544201,1.78537224,105440.0,105430.0,0.89372]
[1749027549299,1.79672428,105440.0,105430.0,0.89372]
[1749027549754,1.71450193,105440.0,105430.0,0.89372]
[1749027551837,0.52759735,105440.0,105430.0,0.89372]
[1749027552039,1.31886707,105440.0,105430.0,0.89372]
[1749027552251,1.30751503,105440.0,105430.0,0.89372]
[1749027552456,1.31886495,105440.0,105430.0,0.89372]
[1749027552662,1.41137617,105440.0,105430.0,0.89372]
[1749027552871,1.80701103,105440.0,105430.0,0.89372]
[1749027557549,1.80701222,105440.0,105430.0,0.89372]
[1749027557837,1.80701278,105440.0,105430.0,0.89372]
[1749027562260,1.71450156,105440.0,105430.0,0.89372]
[1749027562462,1.70190156,105440.0,105430.0,0.89372]
[1749027563519,1.70190886,105440.0,105430.0,0.89372]
[1749027568769,1.70192404,105440.0,105430.0,0.89372]
[1749027572450,1.71708184,105440.0,105430.0,0.89372]
[1749027572666,1.80959306,105440.0,105430.0,0.89372]
[1749027577449,1.78708184,105440.0,105430.0,0.89372]